fUSD/lending_fUSD_20240804
["ID","MTS","AMOUNT","RATE_DAILY","PERIOD"]
[334173147,1722807062968,-500.0,0.00023095,9]
[334173148,1722807062978,-500.0,0.00023095,9]
[334173149,1722807062990,-697.66,0.00023095,9]
[334173150,1722807063001,-500.0,0.00023095,9]
[334173151,1722807063017,-500.0,0.00023095,9]
[334173152,1722807063027,-500.0,0.00023095,9]
[334173153,1722807063037,-946.42,0.00023095,9]
[334173154,1722807063046,-521.85,0.00023095,9]
[334173155,1722807063056,-500.0,0.00023095,9]
[334173156,1722807063066,-821.68,0.00023095,9]
[334173157,1722807063075,-500.0,0.00023095,9]
[334173158,1722807063084,-651.73,0.00023095,9]
[334173159,1722807063094,-500.0,0.00023095,9]
[334173160,1722807063103,-500.0,0.00023095,9]
[334173161,1722807063113,-833.37,0.00023095,9]
[334173162,1722807063122,-500.0,0.00023095,9]
[334173163,1722807063131,-500.0,0.00023095,9]
[334173164,1722807063141,-500.0,0.00023095,9]
[334173165,1722807063151,-500.0,0.00023095,9]
[334173166,1722807063161,-500.0,0.00023095,9]
[334173167,1722807063170,-1263.0,0.00023095,9]
[334173168,1722807063179,-878.54,0.00023095,9]
[334173169,1722807063189,-637.6,0.00023095,9]
[334173170,1722807063199,-1498.76,0.00023095,9]
[334173171,1722807063208,-500.0,0.00023095,9]
[334173172,1722807063217,-581.46,0.00023095,9]
[334173173,1722807063227,-1040.71,0.00023095,9]
[334173174,1722807063236,-621.0,0.00023095,9]
[334173175,1722807063245,-500.0,0.00023095,9]
[334173176,1722807063255,-500.0,0.00023095,9]
[334173177,1722807063265,-688.0,0.00023095,9]
[334173178,1722807063275,-500.0,0.00023095,9]
[334173179,1722807063286,-500.0,0.00023095,9]
[334173180,1722807063295,-500.0,0.00023095,9]
[334173181,1722807063305,-198.79956326,0.00023095,9]
[334173182,1722807063314,-830.23,0.00023095,9]
[334173183,1722807063324,-500.0,0.00023095,9]
[334173184,1722807063334,-500.0,0.00023095,9]
[334173185,1722807063344,-500.0,0.00023095,9]
[334173186,1722807063353,-500.0,0.00023095,9]
[334173187,1722807063363,-500.0,0.00023095,9]
[334173188,1722807063372,-500.0,0.00023095,9]
[334173189,1722807063382,-500.0,0.00023095,9]
[334173190,1722807063392,-543.44,0.00023095,9]
[334173191,1722807063402,-500.0,0.00023095,9]
[334173192,1722807063411,-564.74,0.00023095,9]
[334173193,1722807063420,-500.0,0.00023095,9]
[334173194,1722807063430,-500.0,0.00023095,9]
[334173195,1722807063441,-500.0,0.00023095,9]
[334173196,1722807063451,-858.29,0.00023095,9]
[334173197,1722807063461,-1053.8,0.00023095,9]
[334173198,1722807063470,-963.74,0.00023095,9]
[334173199,1722807063480,-500.0,0.00023095,9]
[334173200,1722807063490,-500.0,0.00023095,9]
[334173201,1722807063500,-593.63,0.00023095,9]
[334173202,1722807063511,-723.44,0.00023095,9]
[334173203,1722807063521,-500.0,0.00023095,9]
[334173204,1722807063531,-500.0,0.00023095,9]
[334173205,1722807063541,-561.46,0.00023095,9]
[334173206,1722807063550,-982.95,0.00023095,9]
[334173207,1722807063559,-500.0,0.00023095,9]
[334173208,1722807063569,-500.0,0.00023095,9]
[334173209,1722807063578,-500.0,0.00023095,9]
[334173210,1722807063587,-500.0,0.00023095,9]
[334173211,1722807063597,-500.0,0.00023095,9]
[334173212,1722807063606,-500.0,0.00023095,9]
[334173213,1722807063615,-604.6,0.00023095,9]
[334173214,1722807063624,-853.51,0.00023095,9]
[334173215,1722807063633,-500.0,0.00023095,9]
[334173216,1722807063643,-500.0,0.00023095,9]
[334173217,1722807063652,-835.25,0.00023095,9]
[334173218,1722807063660,-1296.67,0.00023095,9]
[334173219,1722807063670,-500.0,0.00023095,9]
[334173220,1722807063679,-697.06,0.00023095,9]
[334173221,1722807063688,-928.29,0.00023095,9]
[334173222,1722807063698,-500.0,0.00023095,9]
[334173223,1722807063707,-1887.21,0.00023095,9]
[334173224,1722807063717,-500.0,0.00023095,9]
[334173225,1722807063727,-500.0,0.00023095,9]
[334173226,1722807063736,-500.0,0.00023095,9]
[334173227,1722807063745,-917.56,0.00023095,9]
[334173228,1722807063754,-1022.47,0.00023095,9]
[334173229,1722807063765,-500.0,0.00023095,9]
[334173230,1722807063774,-1006.9,0.00023095,9]
[334173231,1722807063783,-500.0,0.00023095,9]
[334173232,1722807063793,-862.12,0.00023095,9]
[334173233,1722807063802,-867.75,0.00023095,9]
[334173234,1722807063812,-500.0,0.00023095,9]
[334173235,1722807063821,-500.0,0.00023095,9]
[334173236,1722807063830,-500.0,0.00023095,9]
[334173237,1722807063839,-1321.28,0.00023095,9]
[334173238,1722807063848,-500.0,0.00023095,9]
[334173239,1722807063858,-1230.72,0.00023095,9]
[334173240,1722807063867,-500.0,0.00023095,9]
[334173241,1722807063877,-826.25,0.00023095,9]
[334173242,1722807063887,-500.0,0.00023095,9]
[334173243,1722807063896,-1081.77,0.00023095,9]
[334173244,1722807063905,-500.0,0.00023095,9]
[334173245,1722807063914,-500.0,0.00023095,9]
[334173246,1722807063923,-500.0,0.00023095,9]
[334173247,1722807063935,-500.0,0.00023095,9]
[334173248,1722807063946,-801.46,0.00023095,9]
[334173249,1722807063955,-793.08,0.00023095,9]
[334173250,1722807063965,-500.0,0.00023095,9]
[334173251,1722807063976,-500.0,0.00023095,9]
[334173252,1722807063985,-500.0,0.00023095,9]
[334173253,1722807063995,-500.0,0.00023095,9]
[334173254,1722807064004,-500.0,0.00023095,9]
[334173255,1722807064015,-1788.69,0.00023095,9]
[334173256,1722807064025,-500.0,0.00023095,9]
[334173257,1722807064034,-500.0,0.00023095,9]
[334173258,1722807064044,-1039.27,0.00023095,9]
[334173259,1722807064054,-13624.91,0.00023095,9]
[334173260,1722807064064,-25349.22,0.00023095,9]
[334173261,1722807064073,-500.0,0.00023095,9]
[334173262,1722807064084,-500.0,0.00023095,9]
[334173263,1722807064093,-800.42,0.00023095,9]
[334173264,1722807064102,-885.39,0.00023095,9]
[334173265,1722807064111,-500.0,0.00023095,9]
[334173266,1722807064121,-500.0,0.00023095,9]
[334173267,1722807064131,-500.0,0.00023095,9]
[334173268,1722807064141,-2083.28,0.00023095,9]
[334173269,1722807064150,-500.0,0.00023095,9]
[334173270,1722807064159,-1555.66,0.00023095,9]
[334173271,1722807064169,-1284.69,0.00023095,9]
[334173272,1722807064178,-557.47,0.00023095,9]
[334173273,1722807064187,-1301.33,0.00023095,9]
[334173274,1722807064197,-500.0,0.00023095,9]
[334173275,1722807064206,-12740.42,0.00023095,9]
[334173276,1722807064215,-500.0,0.00023095,9]
[334173277,1722807064224,-500.0,0.00023095,9]
[334173278,1722807064233,-500.0,0.00023095,9]
[334173279,1722807064243,-500.0,0.00023095,9]
[334173280,1722807064252,-500.0,0.00023095,9]
[334173281,1722807064262,-1213.72,0.00023095,9]
[334173282,1722807064271,-621.18,0.00023095,9]
[334173283,1722807064281,-1269.25,0.00023095,9]
[334173284,1722807064290,-903.24,0.00023095,9]
[334173285,1722807064301,-4703.09,0.00023095,9]
[334173286,1722807064310,-500.0,0.00023095,9]
[334173287,1722807064319,-500.0,0.00023095,9]
[334173288,1722807064328,-500.0,0.00023095,9]
[334173289,1722807064338,-500.0,0.00023095,9]
[334173290,1722807064347,-1398.52,0.00023095,9]
[334173291,1722807064357,-1164.87,0.00023095,9]
[334173292,1722807064366,-1057.4279034,0.00023095,9]
[334173293,1722807064443,-393.6920966,0.00023095,9]
[334173294,1722807064453,-500.0,0.00023095,9]
[334173295,1722807064463,-500.0,0.00023095,9]
[334173296,1722807064472,-585.42,0.00023095,9]
[334173297,1722807064481,-500.0,0.00023095,9]
[334173298,1722807064491,-1313.3,0.00023095,9]
[334173299,1722807064501,-500.0,0.00023095,9]
[334173300,1722807064510,-850.9,0.00023095,9]
[334173301,1722807064520,-1192.24,0.00023095,9]
[334173302,1722807064529,-500.0,0.00023095,9]
[334173303,1722807064539,-5125.77,0.00023095,9]
[334173304,1722807064548,-500.0,0.00023095,9]
[334173305,1722807064557,-701.74,0.00023095,9]
[334173306,1722807064567,-500.0,0.00023095,9]
[334173307,1722807064578,-500.0,0.00023095,9]
[334173308,1722807064588,-11505.71,0.00023095,9]
[334173309,1722807064597,-842.92,0.00023095,9]
[334173310,1722807064606,-1677.73,0.00023095,9]
[334173311,1722807064616,-1770.01,0.00023095,9]
[334173312,1722807064625,-500.0,0.00023095,9]
[334173313,1722807064635,-500.0,0.00023095,9]
[334173314,1722807064644,-522.58841714,0.00023095,9]
[334173315,1722807065850,-388.41316212,0.00023095,9]
[334173316,1722807065871,-4.52842074,0.00023095,9]
[334173317,1722807065881,-1058.08,0.00023095,9]
[334173318,1722807065891,-181.33071066,0.00023095,9]
[334173319,1722807065906,-318.66928934,0.00023095,9]
[334173320,1722807065916,-500.0,0.00023095,9]
[334173321,1722807065926,-2835.74,0.00023095,9]
[334173322,1722807065941,-500.0,0.00023095,9]
[334173323,1722807065950,-500.0,0.00023095,9]
[334173324,1722807065960,-3530.94,0.00023095,9]
[334173325,1722807065970,-503.31,0.00023095,9]
[334173326,1722807065982,-562.06425786,0.00023095,9]
[334173327,1722807065994,-384.34999965,0.00023095,9]
[334173328,1722807066006,-386.42574249,0.00023095,9]
[334173329,1722807066019,-507.16,0.00023095,9]
[334173330,1722807066029,-1309.74,0.00023095,9]
[334173331,1722807066039,-500.0,0.00023095,9]
[334173332,1722807066048,-645.69,0.00023095,9]
[334173333,1722807066058,-2893.04,0.00023095,9]
[334173334,1722807066068,-478.75,0.00023095,9]
[334173335,1722807066078,-742.13,0.00023095,9]
[334173336,1722807066088,-500.0,0.00023095,9]
[334173337,1722807066097,-500.0,0.00023095,9]
[334173338,1722807066107,-500.0,0.00023095,9]
[334173339,1722807066117,-1277.58,0.00023095,9]
[334173340,1722807066127,-1563.24,0.00023095,9]
[334173341,1722807066137,-500.0,0.00023095,9]
[334173342,1722807066146,-702.24425751,0.00023095,9]
[334173343,1722807066548,-177.77574249,0.00023095,9]
[334173344,1722807066557,-183.03362902,0.00023095,9]
[334173345,1722807066569,-1244.01637098,0.00023095,9]
[334173346,1722807066578,-967.46263419,0.00023095,9]
[334173347,1722807068037,-500.0,0.00023013,9]
[334173348,1722807068047,-120.1702649,0.00023095,9]
[334173349,1722807068059,-3000.87104511,0.00023095,9]
[334173350,1722807068072,-1466.2,0.00023095,9]
[334173351,1722807068085,-547.84176427,0.00023095,9]
[334173352,1722807068096,-225.69429153,0.00023095,9]
[334173353,1722807068107,-605.82038558,0.00023095,9]
[334173354,1722807068119,-660.32229313,0.00023095,9]
[334173355,1722807068132,-320.66732129,0.00023095,9]
[334173356,1722807068142,-500.0,0.00023095,9]
[334173357,1722807068153,-289.43186417,0.00023095,9]
[334173358,1722807068164,-210.56813583,0.00023095,9]
[334173359,1722807068175,-500.0,0.00023095,9]
[334173360,1722807068185,-110.33759619,0.00023095,9]
[334173361,1722807068219,-500.0,0.00023013,9]
[334173362,1722807068230,-183.97176608,0.00023095,9]
[334173363,1722807068251,-337.08969517,0.00023013,9]
[334173364,1722807068276,-501.7615,0.00023013,9]
[334173365,1722807068289,-915.417,0.00023013,9]
[334173366,1722807068301,-273.93180483,0.00023013,9]
[334173367,1722807068312,-205.69063773,0.00023095,9]
[334173368,1722807068321,-500.0,0.00023095,9]
[334173369,1722807068331,-500.0,0.00023095,9]
[334173370,1722807068341,-500.0,0.00023095,9]
[334173371,1722807068351,-249.58834935,0.00023095,9]
[334173372,1722807068361,-1264.4212146,0.00023095,9]
[334173373,1722807068373,-598.4487854,0.00023095,9]
[334173374,1722807068382,-137.5314287,0.00023095,9]
[334173375,1722807068413,-447.76,0.00015383,2]
[334173376,1722807068423,-362.4685713,0.00023095,9]
[334173377,1722807068433,-1385.23,0.00023095,9]
[334173378,1722807068443,-500.0,0.00023095,9]
[334173379,1722807068453,-500.0,0.00023095,9]
[334173380,1722807068463,-500.0,0.00023095,9]
[334173381,1722807068473,-1045.17,0.00023095,9]
[334173382,1722807068483,-1056.54,0.00023095,9]
[334173383,1722807068493,-500.0,0.00023095,9]
[334173384,1722807068503,-1236.27,0.00023095,9]
[334173385,1722807068513,-500.0,0.00023095,9]
[334173386,1722807068527,-500.0,0.00023095,9]
[334173387,1722807068540,-500.0,0.00023095,9]
[334173388,1722807068549,-949.57,0.00023095,9]
[334173389,1722807068559,-500.0,0.00023095,9]
[334173390,1722807068569,-1707.36,0.00023095,9]
[334173391,1722807068578,-1373.58,0.00023095,9]
[334173392,1722807068588,-620.3,0.00023095,9]
[334173393,1722807068601,-500.0,0.00023095,9]
[334173394,1722807068611,-1060.19,0.00023095,9]
[334173395,1722807068621,-400.0,0.00023095,9]
[334173396,1722807068631,-2458.83,0.00023095,9]
[334173397,1722807068640,-500.0,0.00023095,9]
[334173398,1722807068651,-500.0,0.00023095,9]
[334173399,1722807068660,-1756.09,0.00023095,9]
[334173400,1722807068671,-1354.87,0.00023095,9]
[334173401,1722807068683,-500.0,0.00023095,9]
[334173402,1722807068692,-500.0,0.00023095,9]
[334173403,1722807068702,-500.0,0.00023095,9]
[334173404,1722807068712,-2077.82,0.00023095,9]
[334173405,1722807068722,-4260.93,0.00023095,9]
[334173406,1722807068731,-1390.31,0.00023095,9]
[334173407,1722807068741,-500.0,0.00023095,9]
[334173408,1722807068751,-500.0,0.00023095,9]
[334173409,1722807068761,-500.0,0.00023095,9]
[334173410,1722807068776,-549.58,0.00023095,9]
[334173411,1722807068786,-500.0,0.00023095,9]
[334173412,1722807068797,-500.0,0.00023095,9]
[334173413,1722807068807,-620.19128825,0.00023095,9]
[334173414,1722807068816,-1353.732053,0.00023095,7]
[334173415,1722807068827,-1353.732053,0.00023095,7]
[334173416,1722807068836,-1528.52,0.00023095,9]
[334173417,1722807068846,-1281.96,0.00023095,9]
[334173418,1722807068856,-500.0,0.00023095,9]
[334173419,1722807068866,-1120.67,0.00023095,9]
[334173420,1722807068876,-1744.84,0.00023095,9]
[334173421,1722807068885,-500.0,0.00023095,9]
[334173422,1722807068895,-1353.732053,0.00023095,7]
[334173423,1722807068904,-1742.47,0.00023095,9]
[334173424,1722807068914,-1353.732053,0.00023095,7]
[334173425,1722807068924,-1051.86,0.00023095,9]
[334173426,1722807068937,-2061.5,0.00023095,9]
[334173427,1722807068948,-750.57,0.00023095,9]
[334173428,1722807068958,-622.33,0.00023095,9]
[334173429,1722807068968,-500.0,0.00023095,9]
[334173430,1722807068978,-500.0,0.00023095,9]
[334173431,1722807068987,-500.0,0.00023095,9]
[334173432,1722807068997,-930.99,0.00023095,9]
[334173433,1722807069007,-500.0,0.00023095,9]
[334173434,1722807069020,-500.0,0.00023095,9]
[334173435,1722807069030,-500.0,0.00023095,9]
[334173436,1722807069040,-500.0,0.00023095,9]
[334173437,1722807069050,-500.0,0.00023095,9]
[334173438,1722807069060,-653.29,0.00023095,9]
[334173439,1722807069070,-998.61,0.00023095,9]
[334173440,1722807069081,-151.0,0.00023095,7]
[334173441,1722807069091,-1809.57,0.00023095,9]
[334173442,1722807069101,-500.0,0.00023095,9]
[334173443,1722807069110,-151.0,0.00023095,7]
[334173444,1722807069120,-1237.44,0.00023095,9]
[334173445,1722807069130,-1361.95,0.00023095,9]
[334173446,1722807069139,-500.0,0.00023095,9]
[334173447,1722807069149,-2266.77,0.00023095,9]
[334173448,1722807069158,-500.0,0.00023095,9]
[334173449,1722807069169,-500.0,0.00023095,9]
[334173450,1722807069179,-1031.03,0.00023095,9]
[334173451,1722807069190,-500.0,0.00023095,9]
[334173452,1722807069200,-500.0,0.00023095,9]
[334173453,1722807069216,-500.0,0.00023095,9]
[334173454,1722807069226,-1024.37,0.00023095,9]
[334173455,1722807069236,-1678.29,0.00023095,9]
[334173456,1722807069246,-596.76,0.00023095,9]
[334173457,1722807069256,-2525.05,0.00023095,9]
[334173458,1722807069267,-1173.34,0.00023095,9]
[334173459,1722807069278,-500.0,0.00023095,9]
[334173460,1722807069288,-2869.53,0.00023095,9]
[334173461,1722807069297,-862.69,0.00023095,9]
[334173462,1722807069307,-1131.8,0.00023095,9]
[334173463,1722807069317,-1911.96,0.00023095,9]
[334173464,1722807069327,-196.505752,0.00023095,7]
[334173465,1722807069337,-1984.24,0.00023095,9]
[334173466,1722807069347,-548.42,0.00023095,9]
[334173467,1722807069357,-500.0,0.00023095,9]
[334173468,1722807069366,-793.04,0.00023095,9]
[334173469,1722807069376,-500.0,0.00023095,9]
[334173470,1722807069386,-500.0,0.00023095,9]
[334173471,1722807069396,-500.0,0.00023095,9]
[334173472,1722807069405,-500.0,0.00023095,9]
[334173473,1722807069416,-500.0,0.00023095,9]
[334173474,1722807069510,-1371.81,0.00023095,9]
[334173475,1722807069523,-630.46,0.00023095,9]
[334173476,1722807069533,-500.0,0.00023095,9]
[334173477,1722807069543,-500.0,0.00023095,9]
[334173478,1722807069552,-5991.37,0.00023095,9]
[334173479,1722807069562,-500.0,0.00023095,9]
[334173480,1722807069572,-500.0,0.00023095,9]
[334173481,1722807069581,-2205.48,0.00023095,9]
[334173482,1722807069591,-1224.15,0.00023095,9]
[334173483,1722807069600,-967.89,0.00023095,9]
[334173484,1722807069610,-2199.77,0.00023095,9]
[334173485,1722807069620,-1223.27,0.00023095,9]
[334173486,1722807069629,-1057.6,0.00023095,9]
[334173487,1722807069638,-873.16,0.00023095,9]
[334173488,1722807069648,-500.0,0.00023095,9]
[334173489,1722807069658,-500.0,0.00023095,9]
[334173490,1722807069667,-827.61,0.00023095,9]
[334173491,1722807069677,-1232.05,0.00023095,9]
[334173492,1722807069686,-732.24,0.00023095,9]
[334173493,1722807069695,-500.0,0.00023095,9]
[334173494,1722807069704,-1066.75,0.00023095,9]
[334173495,1722807069714,-5555.06,0.00023095,9]
[334173496,1722807069724,-500.0,0.00023095,9]
[334173497,1722807069734,-970.28,0.00023095,9]
[334173498,1722807069744,-1594.16,0.00023095,9]
[334173499,1722807069753,-561.37,0.00023095,9]
[334173500,1722807069763,-12569.26,0.00023095,9]
[334173501,1722807069774,-500.0,0.00023095,9]
[334173502,1722807069783,-1645.37,0.00023095,9]
[334173503,1722807069793,-500.0,0.00023095,9]
[334173504,1722807069802,-500.0,0.00023095,9]
[334173505,1722807069812,-1669.83,0.00023095,9]
[334173506,1722807069821,-500.0,0.00023095,9]
[334173507,1722807069831,-2620.03,0.00023095,9]
[334173508,1722807069840,-500.0,0.00023095,9]
[334173509,1722807069850,-500.0,0.00023095,9]
[334173510,1722807069859,-500.0,0.00023095,9]
[334173511,1722807069869,-668.24,0.00023095,9]
[334173512,1722807069879,-3460.33,0.00023095,9]
[334173513,1722807069889,-2374.64,0.00023095,9]
[334173514,1722807069899,-500.0,0.00023095,9]
[334173515,1722807069908,-1665.28,0.00023095,9]
[334173516,1722807069918,-1419.39,0.00023095,9]
[334173517,1722807069927,-500.0,0.00023095,9]
[334173518,1722807069940,-500.0,0.00023095,9]
[334173519,1722807069950,-500.0,0.00023095,9]
[334173520,1722807069960,-1670.88,0.00023095,9]
[334173521,1722807069970,-1567.19,0.00023095,9]
[334173522,1722807069981,-151.0,0.00023095,7]
[334173523,1722807069990,-610.76,0.00023095,9]
[334173524,1722807070000,-500.0,0.00023095,9]
[334173525,1722807070012,-500.0,0.00023095,9]
[334173526,1722807070022,-845.04,0.00023095,9]
[334173527,1722807070031,-1072.93,0.00023095,9]
[334173528,1722807070041,-739.83,0.00023095,9]
[334173529,1722807070051,-1071.06,0.00023095,9]
[334173530,1722807070061,-500.0,0.00023095,9]
[334173531,1722807070071,-1271.27,0.00023095,9]
[334173532,1722807070080,-841.02,0.00023095,9]
[334173533,1722807070090,-500.0,0.00023095,9]
[334173534,1722807070099,-2169.87,0.00023095,9]
[334173535,1722807070108,-500.0,0.00023095,9]
[334173536,1722807070118,-500.0,0.00023095,9]
[334173537,1722807070127,-2475.05,0.00023095,9]
[334173538,1722807070137,-535.04,0.00023095,9]
[334173539,1722807070147,-3728.1,0.00023095,9]
[334173540,1722807070156,-2716.79,0.00023095,9]
[334173541,1722807070165,-500.0,0.00023095,9]
[334173542,1722807070175,-500.0,0.00023095,9]
[334173543,1722807070185,-821.31,0.00023095,9]
[334173544,1722807070195,-7242.45,0.00023095,9]
[334173545,1722807070205,-1095.55,0.00023095,9]
[334173546,1722807070214,-1127.16,0.00023095,9]
[334173547,1722807070224,-500.0,0.00023095,9]
[334173548,1722807070234,-500.0,0.00023095,9]
[334173549,1722807070243,-1448.13,0.00023095,9]
[334173550,1722807070253,-500.0,0.00023095,9]
[334173551,1722807070263,-500.0,0.00023095,9]
[334173552,1722807070273,-500.0,0.00023095,9]
[334173553,1722807070282,-2028.2,0.00023095,9]
[334173554,1722807070291,-150.0,0.00023149,2]
[334173555,1722807070301,-500.0,0.00023167,9]
[334173556,1722807070311,-200.4082833,0.00023173,2]
[334173557,1722807070320,-10238.1891496,0.00023177,2]
[334173558,1722807070330,-500.0,0.00023177,9]
[334173559,1722807070340,-192.7632254,0.00023178,9]
[334173560,1722807070350,-500.0,0.00023178,9]
[334173561,1722807070360,-500.0,0.00023178,9]
[334173562,1722807070369,-500.0,0.00023178,9]
[334173563,1722807070379,-500.0,0.00023178,9]
[334173564,1722807070389,-500.0,0.00023178,9]
[334173565,1722807070398,-500.0,0.00023178,9]
[334173566,1722807070408,-500.0,0.00023178,9]
[334173567,1722807070418,-500.0,0.00023178,9]
[334173568,1722807070427,-500.0,0.00023178,9]
[334173569,1722807070438,-500.0,0.00023178,9]
[334173570,1722807070447,-500.0,0.00023178,9]
[334173571,1722807070457,-500.0,0.00023178,9]
[334173572,1722807070467,-500.0,0.00023178,9]
[334173573,1722807070476,-500.0,0.00023178,9]
[334173574,1722807070485,-500.0,0.00023178,9]
[334173575,1722807070495,-500.0,0.00023178,9]
[334173576,1722807070505,-500.0,0.00023178,9]
[334173577,1722807070515,-500.0,0.00023178,9]
[334173578,1722807070525,-500.0,0.00023178,9]
[334173579,1722807070535,-500.0,0.00023178,9]
[334173580,1722807070544,-500.0,0.00023178,9]
[334173581,1722807070554,-500.0,0.00023178,9]
[334173582,1722807070563,-500.0,0.00023178,9]
[334173583,1722807070573,-500.0,0.00023178,9]
[334173584,1722807070583,-500.0,0.00023178,9]
[334173585,1722807070592,-500.0,0.00023178,9]
[334173586,1722807070601,-591.12,0.00023178,9]
[334173587,1722807070611,-1067.85,0.00023178,9]
[334173588,1722807070620,-500.0,0.00023178,9]
[334173589,1722807070629,-500.0,0.00023178,9]
[334173590,1722807070638,-500.0,0.00023178,9]
[334173591,1722807070648,-500.0,0.00023178,9]
[334173592,1722807070657,-500.0,0.00023178,9]
[334173593,1722807070667,-725.5,0.00023178,9]
[334173594,1722807070676,-707.36,0.00023178,9]
[334173595,1722807070686,-500.0,0.00023178,9]
[334173596,1722807070695,-500.0,0.00023178,9]
[334173597,1722807070704,-257.28797626,0.00023178,9]
[334173598,1722807070715,-520.48,0.00023178,9]
[334173599,1722807070724,-500.0,0.00023178,9]
[334173600,1722807070734,-500.0,0.00023178,9]
[334173601,1722807070744,-500.0,0.00023178,9]
[334173602,1722807070753,-500.0,0.00023178,9]
[334173603,1722807070763,-500.0,0.00023178,9]
[334173604,1722807070773,-500.0,0.00023178,9]
[334173605,1722807070783,-500.0,0.00023178,9]
[334173606,1722807070792,-500.0,0.00023178,9]
[334173607,1722807070802,-553.42,0.00023178,9]
[334173608,1722807070811,-500.0,0.00023178,9]
[334173609,1722807070821,-500.0,0.00023178,9]
[334173610,1722807070830,-500.0,0.00023178,9]
[334173611,1722807070840,-500.0,0.00023178,9]
[334173612,1722807070849,-685.62,0.00023178,9]
[334173613,1722807070859,-500.0,0.00023178,9]
[334173614,1722807070869,-500.0,0.00023178,9]
[334173615,1722807070879,-500.0,0.00023178,9]
[334173616,1722807070888,-500.0,0.00023178,9]
[334173617,1722807070897,-500.0,0.00023178,9]
[334173618,1722807070907,-500.0,0.00023178,9]
[334173619,1722807070917,-500.0,0.00023178,9]
[334173620,1722807070926,-500.0,0.00023178,9]
[334173621,1722807070939,-803.26,0.00023178,9]
[334173622,1722807070948,-724.96,0.00023178,9]
[334173623,1722807070957,-500.0,0.00023178,9]
[334173624,1722807070967,-567.13,0.00023178,9]
[334173625,1722807070976,-500.0,0.00023178,9]
[334173626,1722807070987,-500.0,0.00023178,9]
[334173627,1722807070998,-500.0,0.00023178,9]
[334173628,1722807071009,-500.0,0.00023178,9]
[334173629,1722807071021,-500.0,0.00023178,9]
[334173630,1722807071031,-500.0,0.00023178,9]
[334173631,1722807071040,-500.0,0.00023178,9]
[334173632,1722807071050,-500.0,0.00023178,9]
[334173633,1722807071059,-500.0,0.00023178,9]
[334173634,1722807071069,-500.0,0.00023178,9]
[334173635,1722807071078,-500.0,0.00023178,9]
[334173636,1722807071087,-816.16,0.00023178,9]
[334173637,1722807071096,-500.0,0.00023178,9]
[334173638,1722807071106,-500.0,0.00023178,9]
[334173639,1722807071115,-500.0,0.00023178,9]
[334173640,1722807071125,-206.78004712,0.00023178,9]
[334173641,1722807071134,-500.0,0.00023178,9]
[334173642,1722807071144,-618.1,0.00023178,9]
[334173643,1722807071153,-500.0,0.00023178,9]
[334173644,1722807071163,-500.0,0.00023178,9]
[334173645,1722807071173,-500.0,0.00023178,9]
[334173646,1722807071182,-500.0,0.00023178,9]